bitfinex/quotes_BTCUSD_20250127
["timestamp","ask_amount","ask_price","bid_price","bid_amount"]
[1737963083222,0.355956,98358.0,98357.0,0.152505]
[1737963083656,0.355956,98358.0,98357.0,0.302505]
[1737963083802,0.355956,98358.0,98357.0,0.206246]
[1737963084008,0.355956,98358.0,98342.0,0.303407]
[1737963084257,0.355956,98358.0,98303.0,0.406904]
[1737963084258,0.355956,98358.0,98343.0,0.285198]
[1737963084479,0.355956,98358.0,98342.0,0.190651]
[1737963084675,0.355956,98358.0,98349.0,0.09734729]
[1737963084941,0.355956,98358.0,98357.0,0.24985229]
[1737963085144,0.356956,98358.0,98357.0,3.18653629]
[1737963085350,0.356956,98358.0,98357.0,2.71747029]
[1737963085554,0.316288,98358.0,98357.0,2.48961929]
[1737963085756,0.0808,98418.0,98385.0,0.302462]
[1737963085963,0.0808,98418.0,98385.0,2.81513929]
[1737963086164,1.4e-07,98386.0,98385.0,3.05417529]
[1737963086373,1.4e-07,98386.0,98385.0,0.41980929]
[1737963086574,0.0003,98430.0,98418.0,0.302411]
[1737963086753,0.0003,98430.0,98418.0,0.72656929]
[1737963086968,0.00035535,98419.0,98418.0,0.86976229]
[1737963087648,0.00035535,98419.0,98418.0,0.85442618]
[1737963087870,0.00035535,98419.0,98418.0,0.84697365]
[1737963088250,0.00035535,98419.0,98418.0,0.69797365]
[1737963088448,0.00035535,98419.0,98418.0,0.09834729]
[1737963088668,0.203215,98418.0,98358.0,0.99521063]
[1737963088834,0.203223,98414.0,98393.0,0.09734729]
[1737963089032,0.0453,98416.0,98393.0,0.09734729]
[1737963089462,0.0453,98416.0,98330.0,0.4053769]
[1737963089735,0.02,98405.0,98346.0,0.09734729]
[1737963089946,0.38528987,98400.0,98347.0,0.228282]
[1737963090149,0.0453,98398.0,98368.0,0.152488]
[1737963090418,0.0453,98398.0,98393.0,0.001]
[1737963090638,0.0453,98398.0,98369.0,0.09734729]
[1737963090860,0.15,98396.0,98383.0,0.152465]
[1737963091080,0.0453,98398.0,98386.0,0.20328]
[1737963091305,0.203276,98389.0,98384.0,0.09734729]
[1737963091547,0.0523,98398.0,98368.0,0.001]
[1737963091795,0.50717,98389.0,98385.0,0.09734729]
[1737963091995,0.50717,98389.0,98378.0,0.203295]
[1737963091996,0.50717,98389.0,98388.0,0.24980429]
[1737963092202,0.50717,98389.0,98388.0,0.96112029]
[1737963092410,0.50717,98389.0,98388.0,0.09734729]
[1737963092626,0.50717,98389.0,98365.0,0.203323]
[1737963092627,0.15,98386.0,98344.0,0.152525]
[1737963092832,0.175522,98346.0,98345.0,0.09734729]
[1737963093043,0.55247,98346.0,98340.0,0.15253]
[1737963093171,0.55247,98346.0,98341.0,0.09734729]
[1737963093396,0.55235638,98346.0,98341.0,0.09734729]
[1737963093634,0.55235638,98346.0,98345.0,0.152524]
[1737963093843,0.50717,98346.0,98345.0,1.49981129]
[1737963094044,0.348482,98346.0,98345.0,3.94726929]
[1737963094189,0.005,98398.0,98397.0,0.152443]
[1737963094413,0.0808,98406.0,98397.0,0.09734729]
[1737963094612,0.741351,98406.0,98398.0,0.09734729]
[1737963094855,0.58892,98406.0,98398.0,0.09734729]
[1737963095261,0.203241,98405.0,98341.0,0.30506]
[1737963095461,0.50812,98405.0,98386.0,0.09734729]
[1737963095667,0.50812,98405.0,98393.0,0.09734729]
[1737963095864,0.50812,98405.0,98353.0,0.89139776]
[1737963095865,0.50812,98405.0,98335.0,0.89139776]
[1737963096066,0.50812,98405.0,98394.0,0.152448]
[1737963096243,0.50812,98405.0,98350.0,0.38528987]
[1737963096244,0.50812,98405.0,98395.0,0.09734729]
[1737963096423,0.15244,98400.0,98395.0,0.09734729]
[1737963096625,0.50812,98400.0,98399.0,0.15244]
[1737963096850,0.50812,98400.0,98399.0,0.39978729]
[1737963097138,0.50812,98400.0,98399.0,0.39888852]
[1737963097337,0.50812,98400.0,98399.0,2.24324952]
[1737963097659,0.50812,98400.0,98399.0,0.24888852]
[1737963097859,0.50812,98400.0,98399.0,0.34960152]
[1737963098026,0.51012,98400.0,98399.0,0.49960152]
[1737963098226,0.51112,98400.0,98399.0,0.49960152]
[1737963098724,0.51012,98400.0,98399.0,0.49960152]
[1737963098939,0.52966,98400.0,98399.0,1.39099928]
[1737963099584,0.52966,98400.0,98399.0,0.49960152]
[1737963099908,0.55266,98400.0,98399.0,1.39099928]
[1737963100118,0.52766,98400.0,98399.0,1.39099928]
[1737963100515,0.54966,98400.0,98399.0,0.09734729]
[1737963100719,0.54966,98400.0,98399.0,0.24978729]
[1737963100913,0.55066,98400.0,98399.0,0.24978729]
[1737963101348,0.55066,98400.0,98399.0,0.36023129]
[1737963101593,0.54966,98400.0,98399.0,0.35898556]
[1737963101903,0.55066,98400.0,98399.0,0.54592756]
[1737963102107,0.52766,98400.0,98399.0,0.54592756]
[1737963102307,0.52666,98400.0,98399.0,0.22814756]
[1737963102578,0.54966,98400.0,98399.0,0.09610156]
[1737963102721,0.023,98399.0,98363.0,0.89139776]
[1737963102928,0.0481,98396.0,98376.0,0.09734729]
[1737963103129,0.55622,98396.0,98395.0,0.152446]
[1737963103332,0.55622,98396.0,98395.0,0.24979329]
[1737963103739,0.55622,98396.0,98395.0,0.2478022]
[1737963104088,0.57922,98396.0,98395.0,0.4365852]
[1737963104289,0.57922,98396.0,98395.0,0.09734729]
[1737963104526,0.023,98395.0,98387.0,0.101957]
[1737963104695,0.226266,98393.0,98375.0,0.15262514]
[1737963104915,0.53112,98393.0,98382.0,0.152466]
[1737963105070,0.50812,98393.0,98383.0,0.26396729]
[1737963105284,0.50812,98393.0,98392.0,0.152451]
[1737963105494,0.50812,98393.0,98392.0,0.39979829]
[1737963105932,0.50812,98393.0,98392.0,2.02365829]
[1737963106161,0.50812,98393.0,98392.0,3.11403629]
[1737963106297,0.50812,98393.0,98392.0,1.40459029]
[1737963106654,0.50812,98393.0,98392.0,0.67323629]
[1737963106855,0.53112,98393.0,98392.0,0.64318429]
[1737963107171,0.53112,98393.0,98392.0,0.09734729]
[1737963107543,0.53112,98393.0,98375.0,0.00114914]
[1737963107544,0.175476,98376.0,98375.0,0.00014914]
[1737963107706,0.175476,98376.0,98309.0,0.3]
[1737963107707,0.50812,98376.0,98331.0,0.0010166]
[1737963107909,0.50812,98376.0,98348.0,0.09734729]
[1737963108122,0.50826914,98376.0,98349.0,0.149788]
[1737963108325,0.023,98359.0,98350.0,0.09734729]
[1737963108611,0.023,98359.0,98333.0,0.152542]
[1737963108612,0.152522,98346.0,98333.0,0.152542]
[1737963108816,0.50812,98346.0,98338.0,0.20338]
[1737963109026,0.52666,98346.0,98345.0,0.4082996]
[1737963109228,0.52666,98346.0,98345.0,1.3872706]
[1737963109455,0.52666,98346.0,98345.0,0.8570346]
[1737963109659,0.52666,98346.0,98345.0,0.5870516]
[1737963109660,0.54966,98346.0,98345.0,0.5870516]
[1737963109810,0.54966,98346.0,98345.0,0.5342666]
[1737963110080,0.54966,98346.0,98345.0,0.4457186]
[1737963110535,0.54966,98346.0,98345.0,0.3787336]
[1737963110975,0.54966,98346.0,98345.0,0.3827336]
[1737963111196,0.54966,98346.0,98345.0,0.5287336]
[1737963111429,0.54966,98346.0,98345.0,0.0976436]
[1737963111641,0.54966,98346.0,98345.0,0.004]
[1737963111642,0.679182,98346.0,98345.0,0.004]
[1737963111888,0.679182,98346.0,98224.0,0.05013903]
[1737963111889,0.023,98344.0,98275.0,0.02065223]
[1737963112110,0.023,98319.0,98307.0,0.152582]
[1737963112347,0.1261,98323.0,98322.0,0.152559]
[1737963112553,0.355561,98319.0,98311.0,0.203436]
[1737963112774,0.378561,98319.0,98318.0,0.152566]
[1737963113214,0.023,98314.0,98304.0,0.00079502]
[1737963113413,0.023,98306.0,98304.0,0.00079502]
[1737963113648,0.378561,98306.0,98305.0,0.241086]
[1737963113892,0.378561,98306.0,98305.0,0.49101929]
[1737963114151,0.378561,98306.0,98305.0,0.1125]
[1737963114430,0.023,98305.0,98304.0,0.00079502]
[1737963114665,0.378561,98305.0,98304.0,0.00079502]
[1737963114872,0.378561,98305.0,98304.0,0.25072931]
[1737963114989,0.378561,98305.0,98304.0,0.42993831]
[1737963115188,0.378561,98305.0,98304.0,0.09814231]
[1737963115393,0.378561,98305.0,98304.0,0.00079502]
[1737963115599,0.378561,98305.0,98287.0,0.09789652]
[1737963115600,0.152601,98295.0,98287.0,0.09789652]
[1737963115803,0.152601,98295.0,98287.0,0.00029652]
[1737963115804,0.15,98294.0,98287.0,0.00029652]
[1737963116007,0.15244586,98288.0,98287.0,0.00029652]
[1737963116287,0.355561,98288.0,98287.0,0.09779295]
[1737963116501,0.355561,98288.0,98287.0,0.00044566]
[1737963116894,0.355561,98288.0,98287.0,0.25040695]
[1737963117100,0.355561,98288.0,98287.0,0.49785695]
[1737963117431,0.354761,98288.0,98287.0,0.64785695]
[1737963117895,0.354761,98288.0,98287.0,0.00044566]
[1737963117896,0.377761,98288.0,98287.0,0.00044566]
[1737963118066,0.379761,98288.0,98287.0,0.00044566]
[1737963118271,0.380761,98288.0,98287.0,0.73946295]
[1737963118473,0.378761,98288.0,98287.0,0.41674695]
[1737963118670,0.377761,98288.0,98287.0,0.09779295]
[1737963118850,0.377761,98288.0,98287.0,0.25040695]
[1737963119052,0.377761,98288.0,98287.0,0.46106695]
[1737963119053,0.373301,98288.0,98287.0,0.46106695]
[1737963119264,0.380301,98288.0,98287.0,0.61206695]
[1737963119668,0.380301,98288.0,98287.0,0.09834729]
[1737963119856,0.380301,98288.0,98287.0,1.22257729]
[1737963120053,0.381301,98288.0,98287.0,0.96626429]
[1737963120311,0.381301,98288.0,98287.0,0.25096129]
[1737963120555,0.278561,98288.0,98287.0,1.91888229]
[1737963120837,0.0479,98340.0,98339.0,0.152533]
[1737963120973,0.0479,98348.0,98340.0,0.152532]
[1737963121176,0.0479,98348.0,98340.0,0.37489229]
[1737963122236,0.0479,98348.0,98322.0,0.353411]
[1737963122237,0.80523745,98341.0,98299.0,0.02020869]
[1737963122439,0.0479,98337.0,98305.0,0.09734729]
[1737963122649,0.02032071,98333.0,98260.0,0.305309]
[1737963122854,0.173,98304.0,98288.0,0.20849529]
[1737963123007,0.15,98304.0,98289.0,0.11596]
[1737963123208,0.15259,98302.0,98288.0,0.176415]
[1737963123433,0.0782,98303.0,98288.0,0.176415]
[1737963123434,0.0782,98303.0,98290.0,0.203479]
[1737963123636,0.0782,98303.0,98302.0,0.15259]
[1737963124047,0.0782,98303.0,98302.0,0.24993729]
[1737963124302,0.0822,98320.0,98319.0,0.152564]
[1737963124452,0.0822,98320.0,98319.0,0.24991129]
[1737963124659,0.0477,98330.0,98329.0,0.152549]
[1737963124887,0.0822,98338.0,98337.0,0.152536]
[1737963125048,0.0822,98338.0,98337.0,0.24988329]
[1737963125247,0.0822,98338.0,98337.0,0.39988329]
[1737963125857,0.80523745,98341.0,98340.0,0.152532]
[1737963126058,0.76456345,98341.0,98340.0,2.14505729]
[1737963126266,0.68321545,98341.0,98340.0,2.63858829]
[1737963126470,0.68321545,98341.0,98340.0,2.63889429]
[1737963126884,0.68321545,98341.0,98340.0,0.39987929]
[1737963127085,0.62220445,98341.0,98340.0,0.39987929]
[1737963127277,0.58153045,98341.0,98340.0,2.42043029]
[1737963127459,0.58267165,98341.0,98340.0,3.05778729]
[1737963127664,0.58367165,98341.0,98340.0,3.17961929]
[1737963127875,0.58267165,98341.0,98340.0,3.17961929]
[1737963128077,0.58167165,98341.0,98340.0,3.17961929]
[1737963128301,0.50232365,98341.0,98340.0,3.19361929]
[1737963128536,0.48198665,98341.0,98340.0,3.19361929]
[1737963128709,0.48098665,98341.0,98340.0,3.18461929]
[1737963128933,0.43225779,98341.0,98340.0,2.16790429]
[1737963129151,0.0001411,98400.0,98376.0,0.152476]
[1737963129371,0.0001411,98400.0,98376.0,3.64776705]
[1737963129551,0.45597157,98377.0,98376.0,3.82564205]
[1737963129756,0.45597157,98377.0,98376.0,3.83564205]
[1737963129977,0.45597157,98377.0,98376.0,3.82564205]
[1737963130201,0.35432157,98377.0,98376.0,3.38731587]
[1737963130623,0.35432157,98377.0,98376.0,1.64132887]
[1737963130825,0.35432157,98377.0,98376.0,2.13396491]
[1737963131031,0.35432157,98377.0,98376.0,2.13496491]
[1737963131228,0.25267157,98377.0,98376.0,3.89191487]
[1737963131461,0.25267157,98377.0,98376.0,5.07994587]
[1737963131653,0.25267157,98377.0,98376.0,5.10394587]
[1737963131863,0.22550071,98377.0,98376.0,1.34632887]
[1737963132018,0.10615932,98377.0,98376.0,1.34632887]
[1737963132234,0.0003,98430.0,98418.0,0.302411]
[1737963132438,0.00023391,98427.0,98426.0,0.302398]
[1737963132590,0.00038319,98427.0,98426.0,0.39974529]
[1737963133288,0.00038319,98427.0,98426.0,0.24974529]
[1737963133445,0.00038319,98427.0,98426.0,0.62361329]
[1737963133644,0.00038319,98427.0,98409.0,0.203233]
[1737963133910,0.00038319,98427.0,98411.0,0.203229]
[1737963134051,0.00038319,98427.0,98412.0,0.09734729]
[1737963134052,0.152412,98418.0,98412.0,0.09734729]
[1737963134259,0.023,98415.0,98375.0,0.89139776]
[1737963134496,0.023,98415.0,98390.0,0.09734729]
[1737963134667,0.023,98415.0,98414.0,0.152417]
[1737963134870,0.0457,98426.0,98425.0,0.1524]
[1737963135209,0.00038319,98427.0,98426.0,0.152398]
[1737963135342,0.00038319,98427.0,98426.0,1.99826529]
[1737963135548,0.00038319,98427.0,98426.0,1.42921929]
[1737963136917,0.00038319,98427.0,98426.0,1.57921929]
[1737963137251,0.00338319,98427.0,98426.0,1.57921929]
[1737963137379,1.9e-07,98430.0,98429.0,0.302394]
[1737963137586,1.9e-07,98430.0,98429.0,0.64014129]
[1737963138384,4.3e-07,98440.0,98429.0,0.5084944]
[1737963138583,4.3e-07,98440.0,98439.0,0.39972529]
[1737963138847,4.3e-07,98440.0,98439.0,1.29112305]
[1737963140449,4.3e-07,98440.0,98439.0,1.29944775]
[1737963140890,4.3e-07,98440.0,98439.0,1.29844775]
[1737963141290,4.3e-07,98440.0,98439.0,1.79308379]
[1737963141491,4.3e-07,98440.0,98439.0,1.79708379]
[1737963141694,0.08901489,98462.0,98456.0,0.152352]
[1737963141918,0.0006388,98457.0,98456.0,1.29109705]
[1737963142279,0.0006388,98457.0,98456.0,3.45429605]
[1737963142502,0.06870369,98462.0,98461.0,0.152344]
[1737963142791,0.06885282,98462.0,98461.0,0.24969129]
[1737963143015,0.06885282,98462.0,98461.0,2.18849629]
[1737963143191,0.06885282,98462.0,98461.0,2.21571529]
[1737963143609,0.06885282,98462.0,98461.0,2.25167429]
[1737963145101,0.06885282,98462.0,98461.0,1.83109229]
[1737963145271,0.06885282,98462.0,98461.0,0.81812129]
[1737963145475,0.06885282,98462.0,98461.0,0.97046529]
[1737963145680,0.06885282,98462.0,98461.0,0.97246529]
[1737963146092,0.06885282,98462.0,98461.0,1.12246529]
[1737963146654,0.06885282,98462.0,98461.0,0.40169129]
[1737963147074,0.06885282,98462.0,98461.0,2.93296729]
[1737963147278,0.06885282,98462.0,98461.0,2.69478429]
[1737963147441,0.06885282,98462.0,98461.0,2.55392929]
[1737963148304,0.06885282,98462.0,98461.0,2.57560391]
[1737963148495,0.0486495,98462.0,98461.0,2.57460391]
[1737963148920,0.00291889,98469.0,98464.0,0.02]
[1737963148921,6.1e-07,98469.0,98464.0,0.02]
[1737963149046,6.1e-07,98469.0,98468.0,0.39968029]
[1737963149247,6.1e-07,98469.0,98468.0,1.29107805]
[1737963150849,6.1e-07,98469.0,98468.0,1.29877774]
[1737963151070,6.1e-07,98469.0,98468.0,1.30077774]
[1737963151305,6.1e-07,98469.0,98468.0,0.25168029]
[1737963151863,6.1e-07,98469.0,98468.0,0.24968029]
[1737963152138,6.1e-07,98469.0,98468.0,0.09834729]
[1737963152688,6.1e-07,98469.0,98468.0,0.25068029]
[1737963152899,6.1e-07,98469.0,98468.0,0.40068029]
[1737963153068,6.1e-07,98469.0,98468.0,0.40940205]
[1737963153269,6.1e-07,98469.0,98468.0,0.4216336]
[1737963153490,6.1e-07,98469.0,98468.0,0.4196336]
[1737963154098,6.1e-07,98469.0,98468.0,0.09734729]
[1737963154300,0.09940061,98469.0,98447.0,0.203153]
[1737963154512,0.023,98468.0,98452.0,0.00014913]
[1737963154691,0.0455,98467.0,98453.0,2.61521729]
[1737963154887,0.023,98466.0,98454.0,2.550287]
[1737963155118,0.0455,98467.0,98454.0,2.550287]
[1737963155275,0.0455,98467.0,98452.0,0.00014913]
[1737963155276,0.302356,98453.0,98452.0,0.00014913]
[1737963155652,0.302397,98427.0,98400.0,0.20325]
[1737963155859,0.023,98426.0,98368.0,0.89139776]
[1737963156121,0.023,98418.0,98389.0,0.00014928]
[1737963156319,0.280354,98390.0,98389.0,0.00014928]
[1737963156518,0.280354,98390.0,98349.0,0.02023171]
[1737963156519,0.173,98389.0,98310.0,0.37122034]
[1737963156751,0.173,98389.0,98333.0,0.09734729]
[1737963156752,0.0807,98367.0,98333.0,0.09734729]
[1737963156899,0.01,98364.0,98333.0,0.110225]
[1737963157107,0.023,98361.0,98328.0,0.314817]
[1737963157301,0.023,98361.0,98312.0,0.04323829]
[1737963157302,0.15,98337.0,98318.0,0.152564]
[1737963157510,0.15,98337.0,98328.0,0.255223]
[1737963157762,0.02040241,98360.0,98329.0,0.274048]
[1737963157876,0.0807,98329.0,98312.0,0.04323829]
[1737963158096,0.0472,98328.0,98327.0,0.00079463]
[1737963158322,0.0472,98328.0,98327.0,0.25069392]
[1737963158778,0.0807,98329.0,98327.0,0.25069392]
[1737963158779,0.001,98337.0,98336.0,0.152538]
[1737963158982,0.001,98337.0,98336.0,0.25090204]
[1737963159136,0.001,98337.0,98336.0,0.24988529]
[1737963159501,0.004,98337.0,98336.0,0.09734729]
[1737963159892,0.0807,98348.0,98336.0,0.190588]
[1737963160094,0.0806,98348.0,98328.0,0.595171]
[1737963160458,0.152531,98341.0,98329.0,0.324938]
[1737963160676,0.15,98345.0,98327.0,0.00079463]
[1737963160904,0.152547,98331.0,98328.0,0.302728]
[1737963161112,0.152545,98332.0,98328.0,0.302728]
[1737963161322,0.30255,98328.0,98327.0,0.00079463]
[1737963161531,0.30255,98328.0,98312.0,0.04323829]
[1737963161532,0.01,98341.0,98312.0,0.04323829]
[1737963161736,0.5341,98347.0,98312.0,0.04323829]
[1737963161737,0.00049657,98328.0,98313.0,0.66416]
[1737963161936,0.00049657,98328.0,98313.0,0.37282329]
[1737963162151,0.00049657,98328.0,98314.0,1.20075]
[1737963162362,0.00049657,98328.0,98315.0,0.09734729]
[1737963162564,0.00049657,98328.0,98327.0,0.152552]
[1737963162738,0.00049657,98328.0,98327.0,0.24989929]
[1737963162971,0.00049657,98328.0,98327.0,1.56287629]
[1737963163185,0.00049657,98328.0,98327.0,0.427938]
[1737963163396,0.00049657,98328.0,98327.0,0.254091]
[1737963163606,0.00249657,98328.0,98314.0,0.619553]
[1737963163816,0.00249657,98328.0,98312.0,0.04323829]
[1737963163817,0.0499,98327.0,98312.0,0.04323829]
[1737963164229,0.302573,98313.0,98312.0,0.04323829]
[1737963164438,0.0763,98326.0,98312.0,0.14058558]
[1737963164648,0.0763,98326.0,98314.0,0.203429]
[1737963164857,0.0763,98326.0,98312.0,0.04323829]
[1737963165061,0.152563,98320.0,98313.0,0.155481]
[1737963165264,0.302573,98313.0,98312.0,0.04323829]
[1737963165675,0.152611,98289.0,98270.0,0.00029715]
[1737963165960,0.302611,98289.0,98270.0,0.00029715]
[1737963166140,0.15,98289.0,98274.0,0.203511]
[1737963166342,0.5341,98318.0,98288.0,0.09764381]
[1737963166546,0.0529,98327.0,98291.0,0.152607]
[1737963166748,0.0529,98327.0,98292.0,0.263936]
[1737963166749,0.15,98308.0,98292.0,0.263936]
[1737963166931,0.152595,98300.0,98288.0,0.00029652]
[1737963167139,0.152602,98295.0,98288.0,0.00129652]
[1737963167344,0.152611,98289.0,98288.0,0.00029652]
[1737963167535,0.302611,98289.0,98288.0,0.00029652]
[1737963167741,0.401911,98289.0,98288.0,0.00029652]
[1737963167917,0.302639,98271.0,98270.0,0.00029715]
[1737963168499,0.302639,98271.0,98270.0,0.00044632]
[1737963168744,0.302639,98271.0,98246.0,0.00029673]
[1737963168745,0.203522,98269.0,98246.0,0.00029673]
[1737963168971,0.152676,98247.0,98246.0,0.00029673]
[1737963169211,0.203533,98264.0,98246.0,0.22041973]
[1737963169329,0.15,98257.0,98247.0,0.266615]
[1737963169531,0.20353,98266.0,98246.0,0.00029673]
[1737963169532,0.152676,98247.0,98246.0,0.00029673]
[1737963169934,0.383676,98247.0,98246.0,0.00029673]
[1737963170264,0.406676,98247.0,98246.0,0.00029673]
[1737963171022,0.407676,98247.0,98246.0,0.00029673]
[1737963171442,0.15,98231.0,98208.0,0.203647]
[1737963171661,0.152704,98229.0,98228.0,0.00014943]
[1737963173001,0.152704,98229.0,98182.0,0.203703]
[1737963173002,0.27034729,98229.0,98184.0,0.152773]
[1737963173355,0.456438,98207.0,98177.0,0.152784]
[1737963173576,0.1307,98207.0,98188.0,0.2038306]
[1737963173771,0.283438,98207.0,98188.0,0.0001416]
[1737963173979,0.30274,98206.0,98188.0,0.0001416]
[1737963174796,0.1307,98207.0,98188.0,0.0001416]
[1737963175034,0.1307,98207.0,98197.0,0.494747]
[1737963175242,0.0497,98207.0,98206.0,0.572161]
[1737963175443,0.0497,98207.0,98205.0,0.00029673]
[1737963175772,0.15274,98206.0,98205.0,0.00029673]
[1737963176363,0.2007,98207.0,98205.0,0.00029673]
[1737963176599,0.0497,98207.0,98206.0,0.170393]
[1737963176728,0.352438,98207.0,98206.0,0.106002]
[1737963176934,0.30274,98206.0,98205.0,0.00029673]
[1737963177490,0.30574,98206.0,98205.0,0.00029673]
[1737963177880,0.003,98206.0,98205.0,0.00029673]
[1737963178179,0.003,98206.0,98205.0,0.10121573]
[1737963178398,0.003,98206.0,98205.0,0.10640473]
[1737963178399,0.15574,98206.0,98205.0,0.10640473]
[1737963178643,0.15574,98206.0,98205.0,0.00029673]
[1737963178817,0.325761,98192.0,98189.0,0.0001418]
[1737963179022,0.93224829,98192.0,98189.0,0.0001418]
[1737963179242,0.15,98191.0,98147.0,0.00105311]
[1737963179367,0.15,98180.0,98153.0,0.152821]
[1737963179562,0.15,98180.0,98154.0,0.40148629]
[1737963179563,0.15,98179.0,98154.0,0.40148629]
[1737963179794,0.50914,98180.0,98147.0,0.0001418]
[1737963179795,0.152817,98156.0,98155.0,0.116578]
[1737963180001,0.152817,98156.0,98155.0,0.112805]
[1737963180302,0.0497,98168.0,98147.0,0.0001418]
[1737963180477,0.152818,98156.0,98148.0,0.119123]
[1737963180699,0.231,98167.0,98156.0,0.152816]
[1737963180897,0.231,98167.0,98157.0,0.112632]
[1737963181107,0.59063584,98167.0,98158.0,0.26234129]
[1737963181460,0.152808,98163.0,98159.0,0.104049]
[1737963181576,0.15,98162.0,98147.0,0.0001418]
[1737963181784,0.30283,98148.0,98147.0,0.0001418]
[1737963182227,0.50914,98148.0,98147.0,0.6900438]
[1737963182441,0.50914,98148.0,98147.0,0.88092909]
[1737963183053,0.51114,98148.0,98147.0,0.88092909]
[1737963183259,0.51914,98148.0,98147.0,0.54620309]
[1737963183516,0.51714,98148.0,98147.0,0.54620309]
[1737963183950,0.51714,98148.0,98147.0,0.25032009]
[1737963184151,0.81997,98148.0,98147.0,0.6142958]
[1737963184351,0.81997,98148.0,98147.0,0.0001418]
[1737963184527,1.01691729,98148.0,98147.0,0.0001418]
[1737963184726,0.9169113,98148.0,98147.0,0.0001418]
[1737963184983,0.58574,98148.0,98147.0,0.0001418]
[1737963185185,0.50914,98148.0,98147.0,0.09748909]
[1737963185387,0.50914,98148.0,98147.0,0.25032009]
[1737963186043,0.50914,98148.0,98147.0,2.29717309]
[1737963186245,0.50914,98148.0,98147.0,3.99503209]
[1737963186418,0.50914,98148.0,98147.0,3.47309109]
[1737963186715,0.203712,98178.0,98147.0,1.34046209]
[1737963186862,0.203712,98178.0,98148.0,0.67758729]
[1737963187057,0.15,98170.0,98147.0,0.0001418]
[1737963187319,0.15283,98148.0,98147.0,0.0011418]
[1737963187626,0.30283,98148.0,98147.0,0.0001418]
[1737963187836,0.302855,98132.0,98126.0,0.5]
[1737963187967,0.152855,98132.0,98126.0,0.5]
[1737963188173,0.0766,98148.0,98131.0,0.20643559]
[1737963188396,0.0476,98153.0,98152.0,0.152824]
[1737963188609,0.004,98148.0,98147.0,0.152831]
[1737963188985,0.004,98148.0,98147.0,0.15384967]
[1737963189360,0.004,98148.0,98147.0,0.302831]
[1737963189771,0.004,98148.0,98147.0,0.152831]
[1737963190189,0.004,98148.0,98134.0,0.203802]
[1737963190190,0.00049553,98153.0,98152.0,0.152824]
[1737963190405,0.00049553,98153.0,98149.0,0.218575]
[1737963190528,0.15283,98148.0,98147.0,0.002]
[1737963190731,0.25017729,98148.0,98147.0,0.002]
[1737963190960,0.15283,98148.0,98147.0,0.002]
[1737963191155,0.15283,98148.0,98147.0,0.004]
[1737963191333,0.00049553,98153.0,98147.0,0.11518]
[1737963191531,0.00049553,98153.0,98148.0,0.190185]
[1737963191735,0.00049553,98153.0,98148.0,0.101574]
[1737963192100,0.00049553,98153.0,98131.0,0.0001413]
[1737963192101,0.203775,98147.0,98132.0,0.151458]
[1737963192315,0.38143,98148.0,98147.0,0.001]
[1737963192483,0.23143,98148.0,98147.0,0.001]
[1737963192686,0.152845,98139.0,98131.0,0.0001413]
[1737963192890,0.152848,98137.0,98132.0,0.140231]
[1737963193094,0.203775,98147.0,98132.0,0.126943]
[1737963193296,0.002,98148.0,98133.0,0.09836629]
[1737963193454,0.002,98148.0,98147.0,0.152831]
[1737963193664,0.00049553,98153.0,98152.0,0.152824]
[1737963194036,0.00349553,98153.0,98152.0,1.15165441]
[1737963194385,0.00049553,98153.0,98152.0,2.95836629]
[1737963194611,0.00049553,98153.0,98152.0,0.25017129]
[1737963194846,0.00049553,98153.0,98152.0,1.15968629]
[1737963195047,0.00049553,98153.0,98152.0,0.30429129]
[1737963195171,0.00049553,98153.0,98110.0,0.37122034]
[1737963195172,0.152829,98149.0,98132.0,0.152855]
[1737963195367,0.00149553,98153.0,98133.0,0.21540729]
[1737963195626,0.152828,98150.0,98147.0,0.001]
[1737963195827,0.15283,98148.0,98147.0,0.001]
[1737963196003,0.00049553,98153.0,98147.0,0.175919]
[1737963196204,0.00049553,98153.0,98147.0,0.09734729]
[1737963196455,0.00049553,98153.0,98132.0,0.002]
[1737963196657,0.01,98182.0,98132.0,0.002]
[1737963196658,0.01,98187.0,98133.0,0.09734729]
[1737963196935,0.00780314,98171.0,98152.0,0.002]
[1737963197150,0.153822,98153.0,98152.0,0.002]
[1737963197347,0.001,98153.0,98133.0,0.09784282]
[1737963197632,0.004,98153.0,98134.0,0.317073]
[1737963197761,0.004,98153.0,98135.0,0.61927629]
[1737963197960,0.004,98153.0,98136.0,0.444551]
[1737963197961,0.001,98153.0,98136.0,0.444551]
[1737963198162,0.003,98153.0,98137.0,0.09734729]
[1737963198408,0.003,98153.0,98137.0,0.29375629]
[1737963198581,0.00795725,98167.0,98133.0,0.00049553]
[1737963198782,0.15,98166.0,98134.0,0.30140329]
[1737963199008,0.002,98153.0,98135.0,0.09734729]
[1737963199209,0.002,98153.0,98135.0,0.09836615]
[1737963199383,0.002,98153.0,98152.0,0.152824]
[1737963199599,0.02154,98153.0,98152.0,0.09734729]
[1737963200020,0.02154,98153.0,98138.0,0.351166]
[1737963200196,0.02154,98153.0,98133.0,0.00063733]
[1737963200197,0.02054,98153.0,98139.0,0.25097729]
[1737963200428,0.02054,98153.0,98149.0,0.152828]
[1737963200752,0.01854,98153.0,98150.0,0.65380729]
[1737963200883,0.01854,98153.0,98152.0,0.152824]
[1737963201083,0.02554,98153.0,98152.0,0.169589]
[1737963201351,0.01854,98153.0,98133.0,0.00063733]
[1737963201546,0.152852,98134.0,98133.0,0.00063733]
[1737963201755,0.302852,98134.0,98133.0,0.00063733]
[1737963202132,0.02054,98153.0,98133.0,0.00063733]
[1737963202346,0.02254,98153.0,98133.0,0.09798462]
[1737963202551,0.152826,98151.0,98135.0,0.2038]
[1737963202751,0.152826,98151.0,98133.0,0.00063733]
[1737963202752,0.01854,98153.0,98152.0,0.152824]
[1737963202930,0.01854,98153.0,98152.0,0.25017129]
[1737963203120,0.01854,98153.0,98152.0,0.40017129]
[1737963203316,0.01854,98153.0,98152.0,2.48737829]
[1737963203518,0.01854,98153.0,98152.0,0.09734729]
[1737963203965,0.01554,98153.0,98135.0,0.001]
[1737963204143,0.01554,98153.0,98136.0,0.49873229]